fUSD/lending_fUSD_20250629
["ID","MTS","AMOUNT","RATE_DAILY","PERIOD"]
[368555153,1751205523341,-667.09,0.00024657,2]
[368555154,1751205523362,-490.0,0.00024657,2]
[368555155,1751205523383,-544.68,0.00024657,2]
[368555156,1751205523404,-576.09,0.00024657,2]
[368555157,1751205523426,-490.0,0.00024657,2]
[368555158,1751205523447,-2103.97,0.00024657,2]
[368555159,1751205523468,-490.0,0.00024657,2]
[368555160,1751205523490,-490.0,0.00024657,2]
[368555161,1751205523512,-490.0,0.00024657,2]
[368555162,1751205523534,-793.92,0.00024657,2]
[368555163,1751205523555,-490.37047673,0.00024657,2]
[368555164,1751205523576,-490.79944295,0.00024657,2]
[368555165,1751205523598,-490.0,0.00024657,2]
[368555166,1751205523619,-490.0,0.00024657,2]
[368555167,1751205523640,-490.0,0.00024657,2]
[368555168,1751205523660,-548.08,0.00024657,2]
[368555169,1751205523681,-490.0,0.00024657,2]
[368555170,1751205523701,-490.0,0.00024657,2]
[368555171,1751205523723,-490.0,0.00024657,2]
[368555172,1751205523746,-490.0,0.00024657,2]
[368555173,1751205523768,-490.0,0.00024657,2]
[368555174,1751205523789,-490.0,0.00024657,2]
[368555175,1751205523811,-490.0,0.00024657,2]
[368555176,1751205523832,-490.0,0.00024657,2]
[368555177,1751205523853,-496.93630279,0.00024657,2]
[368555178,1751205523875,-547.62,0.00024657,2]
[368555179,1751205523897,-490.0,0.00024657,2]
[368555180,1751205523918,-490.0,0.00024657,2]
[368555181,1751205523939,-490.0,0.00024657,2]
[368555182,1751205523961,-490.0,0.00024657,2]
[368555183,1751205523982,-490.0,0.00024657,2]
[368555184,1751205524009,-490.0,0.00024657,2]
[368555185,1751205524033,-1338.26,0.00024657,2]
[368555186,1751205524055,-490.0,0.00024657,2]
[368555187,1751205524076,-490.0,0.00024657,2]
[368555188,1751205524101,-231.55531068,0.00024657,2]
[368555189,1751205524124,-490.0,0.00024657,2]
[368555190,1751205524148,-2414.12,0.00024657,2]
[368555191,1751205524170,-490.0,0.00024657,2]
[368555192,1751205524192,-490.0,0.00024657,2]
[368555193,1751205524219,-490.0,0.00024657,2]
[368555194,1751205524242,-491.54726819,0.00024657,2]
[368555195,1751205524265,-490.0,0.00024657,2]
[368555196,1751205524287,-490.0,0.00024657,2]
[368555197,1751205524315,-1152.54,0.00024657,2]
[368555198,1751205524338,-490.0,0.00024657,2]
[368555199,1751205524361,-490.0,0.00024657,2]
[368555200,1751205524384,-490.0,0.00024657,2]
[368555201,1751205524408,-490.0,0.00024657,2]
[368555202,1751205524430,-490.0,0.00024657,2]
[368555203,1751205524453,-879.55,0.00024657,2]
[368555204,1751205524475,-555.82,0.00024657,2]
[368555205,1751205524499,-1438.32,0.00024657,2]
[368555206,1751205524520,-490.0,0.00024657,2]
[368555207,1751205524543,-423.48291578,0.00024657,2]
[368555208,1751205524566,-490.0,0.00024657,2]
[368555209,1751205524590,-1378.63,0.00024657,2]
[368555210,1751205524614,-490.0,0.00024657,2]
[368555211,1751205524637,-917.85,0.00024657,2]
[368555212,1751205524660,-490.0,0.00024657,2]
[368555213,1751205524682,-490.0,0.00024657,2]
[368555214,1751205524705,-490.0,0.00024657,2]
[368555215,1751205524727,-632.09,0.00024657,2]
[368555216,1751205524749,-490.0,0.00024657,2]
[368555217,1751205524771,-490.0,0.00024657,2]
[368555218,1751205524792,-490.0,0.00024657,2]
[368555219,1751205524814,-490.0,0.00024657,2]
[368555220,1751205524836,-490.0,0.00024657,2]
[368555221,1751205524860,-490.0,0.00024657,2]
[368555222,1751205524883,-490.0,0.00024657,2]
[368555223,1751205524906,-490.0,0.00024657,2]
[368555224,1751205524929,-498.27941426,0.00024657,2]
[368555225,1751205524952,-490.0,0.00024657,2]
[368555226,1751205524989,-490.0,0.00024657,2]
[368555227,1751205525018,-857.92,0.00024657,2]
[368555228,1751205525043,-490.0,0.00024657,2]
[368555229,1751205525067,-490.0,0.00024657,2]
[368555230,1751205525090,-490.0,0.00024657,2]
[368555231,1751205525114,-1434.51,0.00024657,2]
[368555232,1751205525137,-490.0,0.00024657,2]
[368555233,1751205525161,-2301.8,0.00024657,2]
[368555234,1751205525186,-490.0,0.00024657,2]
[368555235,1751205525210,-490.0,0.00024657,2]
[368555236,1751205525233,-699.99,0.00024657,2]
[368555237,1751205525256,-490.0,0.00024657,2]
[368555238,1751205525279,-490.0,0.00024657,2]
[368555239,1751205525301,-1429.91,0.00024657,2]
[368555240,1751205525323,-490.0,0.00024657,2]
[368555241,1751205525345,-490.0,0.00024657,2]
[368555242,1751205525369,-176.134824,0.00024657,2]
[368555243,1751205525392,-911.58,0.00024657,2]
[368555244,1751205525415,-1798.69,0.00024657,2]
[368555245,1751205525439,-490.0,0.00024657,2]
[368555246,1751205525461,-788.87,0.00024657,2]
[368555247,1751205525484,-716.88,0.00024657,2]
[368555248,1751205525507,-490.0,0.00024657,2]
[368555249,1751205525529,-490.0,0.00024657,2]
[368555250,1751205525554,-1694.09,0.00024657,2]
[368555251,1751205525577,-490.0,0.00024657,2]
[368555252,1751205525600,-490.0,0.00024657,2]
[368555253,1751205525621,-490.0,0.00024657,2]
[368555254,1751205525643,-490.0,0.00024657,2]
[368555255,1751205525664,-490.0,0.00024657,2]
[368555256,1751205525686,-490.0,0.00024657,2]
[368555257,1751205525708,-490.0,0.00024657,2]
[368555258,1751205525730,-1017.39,0.00024657,2]
[368555259,1751205525752,-490.0,0.00024657,2]
[368555260,1751205525774,-490.0,0.00024657,2]
[368555261,1751205525797,-490.0,0.00024657,2]
[368555262,1751205525819,-490.0,0.00024657,2]
[368555263,1751205525841,-490.0,0.00024657,2]
[368555264,1751205525864,-490.0,0.00024657,2]
[368555265,1751205525886,-1079.55,0.00024657,2]
[368555266,1751205525908,-490.0,0.00024657,2]
[368555267,1751205525930,-490.0,0.00024657,2]
[368555268,1751205525955,-490.0,0.00024657,2]
[368555269,1751205525979,-605.77,0.00024657,2]
[368555270,1751205526002,-2439.07,0.00024657,2]
[368555271,1751205526030,-490.0,0.00024657,2]
[368555272,1751205526052,-490.0,0.00024657,2]
[368555273,1751205526078,-490.0,0.00024657,2]
[368555274,1751205526364,-490.0,0.00024657,2]
[368555275,1751205526387,-492.96,0.00024657,2]
[368555276,1751205526409,-2226.68,0.00024657,2]
[368555277,1751205526431,-490.0,0.00024657,2]
[368555278,1751205526453,-2384.89,0.00024657,2]
[368555279,1751205526474,-600.61,0.00024657,2]
[368555280,1751205526496,-1193.2,0.00024657,2]
[368555281,1751205526518,-490.0,0.00024657,2]
[368555282,1751205526539,-490.0,0.00024657,2]
[368555283,1751205526563,-596.71749016,0.00024657,2]
[368555284,1751205526584,-490.0,0.00024657,2]
[368555285,1751205526606,-490.0,0.00024657,2]
[368555286,1751205526627,-490.0,0.00024657,2]
[368555287,1751205526650,-3246.57,0.00024657,2]
[368555288,1751205526671,-490.0,0.00024657,2]
[368555289,1751205526693,-490.0,0.00024657,2]
[368555290,1751205526714,-490.0,0.00024657,2]
[368555291,1751205526737,-1900.85,0.00024657,2]
[368555292,1751205526760,-490.0,0.00024657,2]
[368555293,1751205526781,-1804.82,0.00024657,2]
[368555294,1751205526803,-490.0,0.00024657,2]
[368555295,1751205526824,-1966.8,0.00024657,2]
[368555296,1751205526846,-490.0,0.00024657,2]
[368555297,1751205526868,-792.88,0.00024657,2]
[368555298,1751205526891,-1923.81,0.00024657,2]
[368555299,1751205526913,-490.0,0.00024657,2]
[368555300,1751205526935,-490.0,0.00024657,2]
[368555301,1751205526957,-490.0,0.00024657,2]
[368555302,1751205526980,-490.0,0.00024657,2]
[368555303,1751205527000,-372.11883628,0.00024657,2]
[368555304,1751205527025,-506.55,0.00024657,2]
[368555305,1751205527047,-490.0,0.00024657,2]
[368555306,1751205527069,-493.96511754,0.00024657,2]
[368555307,1751205527093,-2035.72,0.00024657,2]
[368555308,1751205527117,-517.64,0.00024657,2]
[368555309,1751205527139,-2967.33,0.00024657,2]
[368555310,1751205527162,-2129.48,0.00024657,2]
[368555311,1751205527186,-490.0,0.00024657,2]
[368555312,1751205527209,-490.0,0.00024657,2]
[368555313,1751205527232,-490.0,0.00024657,2]
[368555314,1751205527255,-490.0,0.00024657,2]
[368555315,1751205527276,-2433.03,0.00024657,2]
[368555316,1751205527298,-490.0,0.00024657,2]
[368555317,1751205527321,-1065.94,0.00024657,2]
[368555318,1751205527344,-3541.57,0.00024657,2]
[368555319,1751205527366,-490.0,0.00024657,2]
[368555320,1751205527388,-490.0,0.00024657,2]
[368555321,1751205527410,-2518.99,0.00024657,2]
[368555322,1751205527432,-668.38,0.00024657,2]
[368555323,1751205527454,-490.0,0.00024657,2]
[368555324,1751205527476,-965.27,0.00024657,2]
[368555325,1751205527498,-1500.0,0.00024657,2]
[368555326,1751205527520,-490.0,0.00024657,2]
[368555327,1751205527542,-490.0,0.00024657,2]
[368555328,1751205527565,-490.0,0.00024657,2]
[368555329,1751205527593,-490.0,0.00024657,2]
[368555330,1751205527616,-490.0,0.00024657,2]
[368555331,1751205527639,-1427.05,0.00024657,2]
[368555332,1751205527662,-570.80091291,0.00024657,2]
[368555333,1751205527684,-490.0,0.00024657,2]
[368555334,1751205527706,-490.0,0.00024657,2]
[368555335,1751205527729,-1346.11,0.00024657,2]
[368555336,1751205527753,-490.0,0.00024657,2]
[368555337,1751205527776,-490.0,0.00024657,2]
[368555338,1751205527799,-1828.91,0.00024657,2]
[368555339,1751205527821,-490.0,0.00024657,2]
[368555340,1751205527844,-490.0,0.00024657,2]
[368555341,1751205527868,-1147.37,0.00024657,2]
[368555342,1751205527891,-884.34,0.00024657,2]
[368555343,1751205527914,-494.54,0.00024657,2]
[368555344,1751205527936,-490.0,0.00024657,2]
[368555345,1751205527960,-2226.47,0.00024657,2]
[368555346,1751205527984,-3098.34,0.00024657,2]
[368555347,1751205528009,-490.0,0.00024657,2]
[368555348,1751205528033,-1006.92,0.00024657,2]
[368555349,1751205528056,-490.0,0.00024657,2]
[368555350,1751205528078,-490.0,0.00024657,2]
[368555351,1751205528104,-490.0,0.00024657,2]
[368555352,1751205528130,-803.71,0.00024657,2]
[368555353,1751205528155,-546.47,0.00024657,2]
[368555354,1751205528180,-1793.81,0.00024657,2]
[368555355,1751205528203,-490.0,0.00024657,2]
[368555356,1751205528226,-490.0,0.00024657,2]
[368555357,1751205528251,-1753.11,0.00024657,2]
[368555358,1751205528274,-1225.59,0.00024657,2]
[368555359,1751205528298,-490.0,0.00024657,2]
[368555360,1751205528320,-490.0,0.00024657,2]
[368555361,1751205528343,-3826.09,0.00024657,2]
[368555362,1751205528366,-503.02,0.00024657,2]
[368555363,1751205528388,-490.0,0.00024657,2]
[368555364,1751205528411,-491.75464713,0.00024657,2]
[368555365,1751205528438,-490.0,0.00024657,2]
[368555366,1751205528462,-490.0,0.00024657,2]
[368555367,1751205528486,-490.0,0.00024657,2]
[368555368,1751205528510,-2116.03,0.00024657,2]
[368555369,1751205528535,-1524.08,0.00024657,2]
[368555370,1751205528559,-490.0,0.00024657,2]
[368555371,1751205528582,-1387.89,0.00024657,2]
[368555372,1751205528606,-490.0,0.00024657,2]
[368555373,1751205528629,-1021.03,0.00024657,2]
[368555374,1751205528651,-490.0,0.00024657,2]
[368555375,1751205528674,-714.95,0.00024657,2]
[368555376,1751205528696,-490.0,0.00024657,2]
[368555377,1751205528719,-533.53,0.00024657,2]
[368555378,1751205528741,-490.0,0.00024657,2]
[368555379,1751205528764,-490.0,0.00024657,2]
[368555380,1751205528787,-490.0,0.00024657,2]
[368555381,1751205528811,-1204.6,0.00024657,2]
[368555382,1751205528834,-490.0,0.00024657,2]
[368555383,1751205528857,-1055.85,0.00024657,2]
[368555384,1751205528879,-490.0,0.00024657,2]
[368555385,1751205528902,-490.0,0.00024657,2]
[368555386,1751205528924,-897.76,0.00024657,2]
[368555387,1751205528948,-955.88,0.00024657,2]
[368555388,1751205528971,-1159.21,0.00024657,2]
[368555389,1751205528996,-526.87,0.00024657,2]
[368555390,1751205529025,-490.0,0.00024657,2]
[368555391,1751205529049,-500.0,0.00024657,2]
[368555392,1751205529082,-500.0,0.00024657,2]
[368555393,1751205529111,-500.0,0.00024657,2]
[368555394,1751205529134,-490.0,0.00024657,2]
[368555395,1751205529159,-500.0,0.00024657,2]
[368555396,1751205529184,-500.0,0.00024657,2]
[368555397,1751205529207,-500.0,0.00024657,2]
[368555398,1751205529230,-500.0,0.00024657,2]
[368555399,1751205529253,-500.0,0.00024657,2]
[368555400,1751205529276,-500.0,0.00024657,2]
[368555401,1751205529300,-438.40124712,0.00024657,2]
[368555402,1751205529323,-500.0,0.00024657,2]
[368555403,1751205529346,-490.0,0.00024657,2]
[368555404,1751205529370,-500.0,0.00024657,2]
[368555405,1751205529394,-500.0,0.00024657,2]
[368555406,1751205529418,-2105.25,0.00024657,2]
[368555407,1751205529441,-500.0,0.00024657,2]
[368555408,1751205529465,-500.0,0.00024657,2]
[368555409,1751205529488,-500.0,0.00024657,2]
[368555410,1751205529512,-500.0,0.00024657,2]
[368555411,1751205529536,-490.0,0.00024657,2]
[368555412,1751205529559,-490.0,0.00024657,2]
[368555413,1751205529581,-567.89,0.00024657,2]
[368555414,1751205529607,-476.82891858,0.00024657,2]
[368555415,1751205529632,-1767.1,0.00024657,2]
[368555416,1751205529655,-490.0,0.00024657,2]
[368555417,1751205530070,-1429.17,0.00024657,2]
[368555418,1751205530093,-490.0,0.00024657,2]
[368555419,1751205530117,-2219.76,0.00024657,2]
[368555420,1751205530142,-550.69,0.00024657,2]
[368555421,1751205530165,-490.0,0.00024657,2]
[368555422,1751205530189,-264.22630552,0.00024657,2]
[368555423,1751205530211,-495.46273633,0.00024657,2]
[368555424,1751205530234,-781.78771537,0.00024657,2]
[368555425,1751205552895,704.0,0.0002739,120]
[368555426,1751205555838,159.0,0.0002739,120]
[368555427,1751205685882,-1705.500238,0.00015035,2]
[368555428,1751205685905,-739.961797,0.00015035,2]
[368555429,1751205685925,-1705.500238,0.0002155,2]
[368555430,1751205685947,-739.961797,0.0002155,2]
[368555431,1751205685970,-809.0,0.00022206,6]
[368555432,1751205685991,-500.0,0.00022206,2]
[368555433,1751205686011,-500.0,0.00022206,2]
[368555434,1751205686031,-494.19914527,0.00022206,2]
[368555435,1751205686050,-305.71,0.00022463,2]
[368555436,1751205686070,-300.74,0.00022463,2]
[368555437,1751205686092,-390.0,0.000226,3]
[368555438,1751205686116,-5509.0,0.00023,5]
[368555439,1751205686138,-300.0,0.00023199,2]
[368555440,1751205686160,-1200.0,0.00023199,2]
[368555441,1751205686181,-200.0,0.00023569,2]
[368555442,1751205686201,-150.0,0.00023643,2]
[368555443,1751205686222,-1500.0,0.00023643,2]
[368555444,1751205686242,-565.53,0.00023654,2]
[368555445,1751205686264,-1200.0,0.00024208,2]
[368555446,1751205686288,-1301.0,0.00024209,2]
[368555447,1751205686309,-17208.37017422,0.00024404,2]
[368555448,1751205686332,-537.42131604,0.00024415,2]
[368555449,1751205686355,-17208.37017422,0.00024416,2]
[368555450,1751205686379,-17208.37017422,0.00024416,2]
[368555451,1751205686402,-8069.54879737,0.00024425,2]
[368555452,1751205686423,-9651.81614866,0.00024426,2]
[368555455,1751205877572,1100.0,0.00027397,120]
[368555460,1751206083716,3092.20394267,0.00013963,2]
[368555461,1751206083739,3092.20394267,0.00013963,2]
[368555462,1751206083761,3092.20394267,0.00013963,2]
[368555463,1751206083783,3092.20394267,0.00013963,2]
[368555464,1751206083805,3092.20394267,0.00013963,2]
[368555465,1751206083827,3092.20394267,0.00013963,2]
[368555466,1751206083850,3092.20394267,0.00013963,2]
[368555467,1751206083871,2490.92631188,0.00013963,2]
[368555472,1751206232639,-539.0,0.00020206,2]
[368555474,1751206232649,-167.91,0.00020872,2]
[368555476,1751206232661,-953.65,0.00023474,2]
[368555477,1751206232670,-1000.0,0.00023478,2]
[368555479,1751206232680,-3070.86,0.00023498,2]
[368555481,1751206232690,-165.36570154,0.00023508,2]
[368555483,1751206232699,-1708.36,0.00023512,2]
[368555485,1751206232708,-1200.0,0.0002359,2]
[368555487,1751206232717,-1442.83,0.00023591,2]
[368555489,1751206232726,-300.0,0.000236,2]
[368555491,1751206232735,-150.0,0.00023601,2]
[368555493,1751206232743,-243.0,0.00023601,2]
[368555495,1751206232752,-42355.82,0.00023602,2]
[368555497,1751206232761,-23900.0,0.00023602,2]
[368555499,1751206232770,-200.0,0.00023608,7]
[368555501,1751206232780,-150.0,0.00023609,2]
[368555503,1751206232789,-326.17,0.00023631,2]
[368555505,1751206232798,-203.30542634,0.000239,10]
[368555507,1751206232807,-165.36570154,0.00023979,2]
[368555509,1751206232816,-203.30542623,0.00024107,10]
[368555511,1751206232826,-539.0,0.00024185,7]
[368555513,1751206232835,-203.30542623,0.00024314,10]
[368555515,1751206232845,-600.0,0.000244,8]
[368555517,1751206232855,-5873.78975831,0.0002441,2]
[368555519,1751206232868,-1126.21024169,0.0002441,2]
[368555521,1751206232878,-7000.0,0.0002441,2]
[368555523,1751206232887,-3158.65558891,0.0002442,2]
[368555525,1751206232897,-7556.55402556,0.00024426,2]
[368555527,1751206232907,-1500.0,0.00024427,2]
[368555529,1751206232915,-43469.97309836,0.00024427,2]
[368555531,1751206232931,-599.03060941,0.00024427,2]
[368555534,1751206232949,-9536.99,0.00024427,2]
[368555536,1751206232970,-48332.21298199,0.00024427,2]
[368555537,1751206232982,-10854.3117,0.00024427,2]
[368555538,1751206233009,-552.75008488,0.00024427,2]
[368555539,1751206233021,-542.468985,0.00024427,2]
[368555543,1751206238211,-4136.79416559,0.00024427,2]
[368555544,1751206238496,-3420.44375286,0.00024427,2]
[368557128,1751206258364,-1467.09110243,0.00024427,2]
[368557129,1751206258377,-577.67,0.00024427,2]
[368557130,1751206258440,-307.07755376,0.00024427,2]
[368557131,1751206258475,-45147.12959258,0.00024427,2]
[368557132,1751206258485,-544.284833,0.00024431,4]
[368557133,1751206258494,-7457.04224707,0.00024433,2]
[368557134,1751206258504,-537.42131604,0.00024434,2]
[368557135,1751206258513,-40934.11169882,0.00024438,2]
[368557136,1751206258522,-537.42131604,0.00024449,2]
[368557137,1751206258531,-165.36570154,0.00024449,2]
[368557138,1751206258540,-7000.0,0.0002446,2]
[368557139,1751206258549,-168943.94362686,0.00024464,2]
[368557140,1751206258559,-7457.04224707,0.00024481,2]
[368557141,1751206258568,-40934.11169882,0.00024486,2]
[368557142,1751206258578,-168943.94362686,0.00024491,2]
[368557143,1751206258588,-537.42131604,0.00024493,2]
[368557144,1751206258597,-1200.0,0.000245,8]
[368557145,1751206258606,-1587.7237478,0.000245,2]
[368557146,1751206258615,-40934.11169882,0.00024502,2]
[368557147,1751206258625,-7457.04224707,0.00024508,2]
[368557148,1751206258636,-1200.0,0.00024509,2]
[368557149,1751206258645,-17208.37017422,0.00024509,2]
[368557150,1751206258655,-7457.04224707,0.00024517,2]
[368557151,1751206258664,-1587.72374772,0.00024517,2]
[368557152,1751206258673,-203.30542623,0.00024521,11]
[368557153,1751206258682,-40934.11169882,0.00024524,2]
[368557154,1751206258692,-7000.0,0.0002453,2]
[368557155,1751206258702,-7457.04224707,0.00024532,2]
[368557156,1751206258711,-1587.72374772,0.00024535,2]
[368557157,1751206258720,-40934.11169882,0.00024545,2]
[368557158,1751206258730,-1587.72374772,0.00024552,2]
[368557159,1751206258739,-704.73379826,0.00024556,2]
[368557160,1751206258749,-1000.0,0.00024557,2]
[368557161,1751206258758,-24109.1398,0.00024557,2]
[368557162,1751206258767,-5000.0,0.00024557,2]
[368557163,1751206258776,-2219.2215,0.00024557,2]
[368557164,1751206258785,-44893.7933,0.00024557,3]
[368557165,1751206258794,-151.4986287,0.00024557,2]
[368557166,1751206258803,-207.4,0.00024559,2]
[368557167,1751206258812,-1587.72374772,0.0002457,2]
[368557168,1751206258822,-31565.44172334,0.00024573,2]
[368557169,1751206258831,-168943.94362686,0.0002458,2]
[368557170,1751206258840,-1587.72374772,0.00024587,2]
[368557171,1751206258849,-168943.94362686,0.00024591,2]
[368557172,1751206258858,-537.42131604,0.00024596,2]
[368557173,1751206258868,-1069.0,0.000246,2]
[368557174,1751206258876,-1069.0,0.000246,2]
[368557175,1751206258886,-1069.0,0.000246,2]
[368557176,1751206258895,-1069.0,0.000246,2]
[368557177,1751206258905,-1069.0,0.000246,2]
[368557178,1751206258914,-1800.0,0.000246,8]
[368557179,1751206258923,-1587.72374772,0.00024605,2]
[368557180,1751206258932,-1000.0,0.00024609,2]
[368557181,1751206258942,-704.73379819,0.00024617,2]
[368557182,1751206258951,-1587.72374772,0.00024622,2]
[368557183,1751206258960,-1587.72374772,0.00024639,2]
[368557184,1751206258969,-151.0,0.00024642,2]
[368557185,1751206258978,-178.42522448,0.00024642,2]
[368557186,1751206258987,-311.1,0.00024642,2]
[368557187,1751206258997,-639.98,0.00024647,2]
[368557188,1751206259006,-639.98,0.00024647,2]
[368557189,1751206259015,-1251.56671188,0.00024647,2]
[368557190,1751206259024,-20810.00649999,0.00024655,7]
[368557191,1751206259033,-1000.0,0.00024656,2]
[368557192,1751206259043,-1000.0,0.00024656,2]
[368557193,1751206259052,-1000.0,0.00024656,2]
[368557194,1751206259061,-440.86532189,0.00024656,2]
[368557195,1751206259070,-370.79662305,0.00024656,2]
[368557196,1751206259080,-500.0,0.00024656,2]
[368557197,1751206259089,-500.0,0.00024656,2]
[368557198,1751206259098,-411.14538282,0.00024656,2]
[368557199,1751206259108,-1000.0,0.00024656,2]
[368557200,1751206259117,-500.0,0.00024656,2]
[368557201,1751206259126,-500.0,0.00024656,2]
[368557202,1751206259135,-500.0,0.00024656,2]
[368557203,1751206259145,-500.0,0.00024656,2]
[368557204,1751206259154,-500.0,0.00024656,2]
[368557205,1751206259164,-500.0,0.00024656,2]
[368557206,1751206259173,-548.54768266,0.00024656,2]
[368557207,1751206259182,-500.0,0.00024656,2]
[368557208,1751206259191,-515.54923255,0.00024656,2]
[368557209,1751206259200,-500.0,0.00024656,2]
[368557210,1751206259210,-1804.262,0.00024656,7]
[368557211,1751206259219,-154.466,0.00024656,7]
[368557212,1751206259228,-419.30768359,0.00024656,2]
[368557213,1751206259237,-628.17758494,0.00024656,2]
[368557214,1751206259248,-500.0,0.00024656,2]
[368557215,1751206259257,-500.0,0.00024656,2]
[368557216,1751206259267,-500.0,0.00024656,2]
[368557217,1751206259277,-648.05513042,0.00024656,2]
[368557218,1751206259286,-500.0,0.00024656,2]
[368557219,1751206259295,-500.0,0.00024656,2]
[368557220,1751206259308,-500.0,0.00024656,2]
[368557221,1751206259317,-500.0,0.00024656,2]
[368557222,1751206259326,-500.0,0.00024656,2]
[368557223,1751206259334,-500.0,0.00024656,2]
[368557224,1751206259343,-500.0,0.00024656,2]
[368557225,1751206259354,-500.0,0.00024656,2]
[368557226,1751206259363,-500.0,0.00024656,2]
[368557227,1751206259372,-500.0,0.00024656,2]
[368557228,1751206259382,-500.0,0.00024656,2]
[368557229,1751206259392,-500.0,0.00024656,2]
[368557230,1751206259401,-500.0,0.00024656,2]
[368557231,1751206259410,-533.57016462,0.00024656,2]
[368557232,1751206259420,-500.0,0.00024656,2]
[368557233,1751206259429,-500.0,0.00024656,2]
[368557234,1751206259438,-500.0,0.00024656,2]
[368557235,1751206259447,-450.0,0.00024656,2]
[368557236,1751206259456,-500.0,0.00024656,2]
[368557237,1751206259465,-500.0,0.00024656,2]
[368557238,1751206259475,-500.0,0.00024656,2]
[368557239,1751206259485,-550.0,0.00024656,2]
[368557240,1751206259494,-150.0,0.00024656,2]
[368557241,1751206259503,-8147.35736989,0.00024657,4]
[368557242,1751206259512,-264962.98993595,0.00024657,4]
[368557243,1751206259522,-1587.72374772,0.00024657,2]
[368557244,1751206259531,-41251.34778022,0.00024657,2]
[368557245,1751206259540,-1457.99612408,0.00024657,2]
[368557246,1751206259549,-305.8,0.00024657,2]
[368557247,1751206259558,-301.5,0.00024657,2]
[368557248,1751206259567,-490.0,0.00024657,2]
[368557249,1751206259577,-490.0,0.00024657,2]
[368557250,1751206259586,-490.0,0.00024657,2]
[368557251,1751206259595,-490.0,0.00024657,2]
[368557252,1751206259604,-490.0,0.00024657,2]
[368557253,1751206259614,-490.0,0.00024657,2]
[368557254,1751206259623,-324.65686095,0.00024657,2]
[368557255,1751206259633,-490.0,0.00024657,2]
[368557256,1751206259643,-490.0,0.00024657,2]
[368557257,1751206259652,-186.45885594,0.00024657,2]
[368557258,1751206259661,-490.0,0.00024657,2]
[368557259,1751206259670,-203.211678,0.00024657,2]
[368557260,1751206259680,-490.0,0.00024657,2]
[368557261,1751206259689,-425.06358682,0.00024657,2]
[368557262,1751206259698,-490.0,0.00024657,2]
[368557263,1751206259708,-1058.28,0.00024657,2]
[368557264,1751206259717,-490.0,0.00024657,2]
[368557265,1751206259727,-490.0,0.00024657,2]
[368557266,1751206259737,-490.0,0.00024657,2]
[368557267,1751206259746,-501.64510532,0.00024657,2]
[368557268,1751206259756,-490.0,0.00024657,2]
[368557269,1751206259766,-490.0,0.00024657,2]
[368557270,1751206259775,-490.7843343,0.00024657,2]
[368557271,1751206259785,-490.0,0.00024657,2]
[368557272,1751206259795,-490.0,0.00024657,2]
[368557273,1751206259804,-490.0,0.00024657,2]
[368557274,1751206259814,-490.0,0.00024657,2]
[368557275,1751206259823,-334.85475546,0.00024657,2]
[368557276,1751206259833,-490.0,0.00024657,2]
[368557277,1751206259843,-490.0,0.00024657,2]
[368557278,1751206259852,-495.43126155,0.00024657,2]
[368557279,1751206259861,-490.0,0.00024657,2]
[368557280,1751206259871,-490.0,0.00024657,2]